bitfinex/quotes_SOLUSD_20251025
["timestamp","ask_amount","ask_price","bid_price","bid_amount"]
[1761370299055,0.72,194.13,194.1,7.69821016]
[1761370301661,0.72,194.13,194.1,5.15179327]
[1761370306365,2.54641689,194.12,194.07,5.15274377]
[1761370306664,2.54641689,194.12,194.07,7.69916066]
[1761370306849,0.72,194.11,194.07,7.69916066]
[1761370307750,5.87119144,194.11,194.07,7.69916066]
[1761370307953,0.72,194.1,194.07,7.69916066]
[1761370310166,0.72,194.1,194.07,8.35916066]
[1761370312682,0.72,194.1,194.07,7.69916066]
[1761370316378,0.72,194.1,194.07,8.35916066]
[1761370316678,0.72,194.1,194.07,7.44480024]
[1761370317456,0.72,194.1,194.07,6.78480024]
[1761370317854,22.88,194.16,194.09,1.63205647]
[1761370318080,0.72,194.18,194.15,1.63205647]
[1761370318261,5.87119144,194.18,194.15,2.31205647]
[1761370318469,0.72,194.18,194.15,1.63205647]
[1761370318681,49.26,194.17,194.15,1.63205647]
[1761370319173,0.66,194.17,194.15,1.63205647]
[1761370320077,0.66,194.17,194.13,5.83106352]
[1761370320277,0.66,194.17,194.14,1.63205647]
[1761370320475,7.44226009,194.17,194.12,5.87119144]
[1761370320671,1.63205647,194.15,194.09,0.68]
[1761370320879,1.63205647,194.15,194.1,1.63205647]
[1761370321183,0.66,194.14,194.1,1.63205647]
[1761370321374,0.66,194.14,194.1,7.46400728]
[1761370322886,0.66,194.14,194.1,5.83195081]
[1761370323087,0.66,194.14,194.1,7.46400728]
[1761370323589,0.66,194.14,194.1,6.78400728]
[1761370325173,0.66,194.14,194.12,1.63205647]
[1761370325390,0.66,194.14,194.11,1.63205647]
[1761370326476,0.66,194.14,194.11,6.78366357]
[1761370326877,6.78223091,194.15,194.12,2.31205647]
[1761370327392,7.44223091,194.15,194.12,1.63205647]
[1761370327586,0.66,194.14,194.12,1.63205647]
[1761370328681,0.66,194.14,194.11,6.78366357]
[1761370341992,1.63205647,194.12,194.05,0.67]
[1761370342186,1.63205647,194.12,194.07,1.63205647]
[1761370342411,0.66,194.11,194.07,1.63205647]
[1761370344917,0.66,194.11,194.08,5.15251442]
[1761370345516,2.29205647,194.11,194.06,1.63205647]
[1761370345903,0.66,194.1,194.06,1.63205647]
[1761370346601,0.66,194.1,194.06,6.78507372]
[1761370346797,1.63205647,194.09,194.04,6.78563305]
[1761370347200,0.66,194.08,194.04,6.78563305]
[1761370352398,2.29205647,194.08,194.04,5.15357658]
[1761370352804,0.66,194.07,194.04,5.15357658]
[1761370353819,2.29205647,194.07,194.04,5.15357658]
[1761370354229,0.66,194.06,194.04,5.15357658]
[1761370355625,0.66,194.06,194.03,5.15384218]
[1761370356828,0.66,194.06,194.03,5.82384218]
[1761370357031,0.66,194.06,194.03,7.45589865]
[1761370360532,0.66,194.06,194.04,6.78543029]
[1761370363432,0.66,194.06,194.04,5.15337382]
[1761370371133,0.66,194.06,194.02,6.78616429]
[1761370371449,0.66,194.06,194.02,5.15410782]
[1761370371632,0.66,194.06,194.02,6.78616429]
[1761370378340,0.66,194.06,194.02,5.15410782]
[1761370378544,0.66,194.06,194.03,1.63205647]
[1761370378749,0.66,194.06,194.03,2.55111436]
[1761370378928,7.44543029,194.06,194.03,2.55111436]
[1761370379331,7.44543029,194.06,194.03,7.70478456]
[1761370379750,7.44543029,194.06,194.03,5.1536702]
[1761370379957,7.44543029,194.06,194.03,7.70478456]
[1761370380557,7.44543029,194.06,194.03,5.1536702]
[1761370380865,7.44543029,194.06,194.03,7.70478456]
[1761370381645,2.55111436,194.08,194.03,7.70478456]
[1761370381646,0.71,194.08,194.04,3.23111436]
[1761370381843,8.15543029,194.08,194.04,0.68]
[1761370382046,8.15543029,194.08,194.05,2.55111436]
[1761370382237,0.71,194.07,194.04,3.23111436]
[1761370382438,0.71,194.07,194.04,2.55111436]
[1761370382950,0.71,194.07,194.04,5.153537]
[1761370384161,0.71,194.07,194.03,7.70490629]
[1761370384654,0.71,194.07,194.03,5.15379193]
[1761370384855,0.71,194.07,194.02,2.55111436]
[1761370384856,8.41397643,194.07,194.02,2.55111436]
[1761370385235,12.88593008,194.07,194.04,2.55111436]
[1761370385443,13.59593008,194.07,194.04,2.55111436]
[1761370385646,0.71,194.06,194.04,2.55111436]
[1761370386570,0.71,194.06,194.04,7.70456332]
[1761370390767,21.8,194.09,194.05,3.23111436]
[1761370390942,21.8,194.09,194.05,0.68]
[1761370391143,0.71,194.11,194.08,2.55111436]
[1761370391942,15.47548425,194.14,194.1,2.55111436]
[1761370392163,10.81360536,194.15,194.13,2.55111436]
[1761370392575,11.52360536,194.15,194.13,2.55111436]
[1761370393486,11.52360536,194.15,194.12,7.70232048]
[1761370396164,11.52360536,194.15,194.12,5.15120612]
[1761370396974,11.52360536,194.15,194.12,7.70232048]
[1761370400990,11.52360536,194.15,194.12,5.15120612]
[1761370401291,3.22111436,194.14,194.09,7.70336331]
[1761370401788,3.22111436,194.13,194.09,5.15224895]
[1761370401975,0.67,194.13,194.09,5.15224895]
[1761370402185,0.67,194.12,194.09,5.15224895]
[1761370402490,0.67,194.12,194.09,5.87224895]
[1761370402663,0.67,194.12,194.09,5.15224895]
[1761370403076,0.67,194.12,194.09,7.70336331]
[1761370403392,0.67,194.12,194.09,8.42336331]
[1761370406280,0.67,194.14,194.11,2.55111436]
[1761370406983,10.81360536,194.15,194.12,3.27111436]
[1761370407184,10.81360536,194.15,194.12,2.55111436]
[1761370407500,11.48360536,194.15,194.12,2.55111436]
[1761370407992,11.48360536,194.15,194.13,5.15118734]
[1761370408294,10.81360536,194.15,194.13,5.15118734]
[1761370408595,0.67,194.14,194.13,5.15118734]
[1761370408994,11.48360536,194.15,194.13,5.15118734]
[1761370409596,10.81360536,194.15,194.13,8.4223017]
[1761370409794,10.81360536,194.15,194.14,3.27111436]
[1761370409984,10.81360536,194.15,194.14,2.55111436]
[1761370410685,10.81360536,194.15,194.14,3.27111436]
[1761370411692,10.81360536,194.15,194.14,8.42203637]
[1761370411888,2.55111436,194.2,194.14,18.57851158]
[1761370412078,0.67,194.19,194.14,18.57851158]
[1761370415992,0.67,194.19,194.14,32.17581661]
[1761370416194,0.67,194.19,194.15,0.72]
[1761370416401,0.67,194.19,194.14,32.17581661]
[1761370418000,0.67,194.19,194.14,31.45581661]
[1761370418185,0.67,194.19,194.14,32.17581661]
[1761370418598,0.67,194.19,194.16,5.15039142]
[1761370421581,0.67,194.19,194.16,7.70150578]
[1761370421784,0.67,194.19,194.16,8.42150578]
[1761370423412,0.67,194.23,194.18,2.55111436]
[1761370423790,0.67,194.23,194.19,0.72]
[1761370424487,0.67,194.23,194.18,3.27111436]
[1761370425107,3.22111436,194.23,194.18,3.27111436]
[1761370425402,0.67,194.22,194.18,3.27111436]
[1761370425592,0.67,194.22,194.19,5.14959575]
[1761370438723,0.67,194.22,194.18,6.78009908]
[1761370440616,0.67,194.22,194.18,7.44009908]
[1761370441796,102.88,194.24,194.2,1.63023813]
[1761370441998,102.2,194.24,194.2,1.63023813]
[1761370442325,0.68,194.23,194.2,1.63023813]
[1761370442500,102.88,194.24,194.21,1.63023813]
[1761370442695,102.2,194.24,194.2,0.66]
[1761370442893,0.68,194.23,194.21,1.63023813]
[1761370443626,102.2,194.24,194.21,6.77911759]
[1761370443809,102.88,194.24,194.21,6.77911759]
[1761370444807,0.68,194.24,194.21,6.77911759]
[1761370446906,12.87465238,194.23,194.21,6.77911759]
[1761370447728,13.55465238,194.23,194.21,6.77911759]
[1761370449842,13.55465238,194.23,194.19,10.87647521]
[1761370450132,13.55465238,194.23,194.2,1.63023813]
[1761370451128,13.55465238,194.23,194.2,2.29023813]
[1761370451745,12.87465238,194.23,194.21,6.77930357]
[1761370451945,12.87465238,194.23,194.22,1.63023813]
[1761370452236,0.68,194.25,194.22,2.29023813]
[1761370452616,0.68,194.25,194.22,1.63023813]
[1761370452938,10.87647521,194.24,194.23,2.29023813]
[1761370453134,0.68,194.26,194.23,2.29023813]
[1761370453322,11.93279767,194.26,194.23,2.29023813]
[1761370454238,11.93279767,194.26,194.24,5.14827018]
[1761370454818,11.25279767,194.26,194.24,5.14827018]
[1761370456141,11.93279767,194.26,194.24,5.14827018]
[1761370456933,11.25279767,194.26,194.25,1.63023813]
[1761370457138,0.2,194.27,194.25,2.29023813]
[1761370457339,12.13279767,194.27,194.24,5.14827018]
[1761370457530,0.68,194.26,194.24,5.14827018]
[1761370460444,0.68,194.26,194.24,1.63023813]
[1761370460632,0.68,194.26,194.23,5.14853524]
[1761370460844,0.68,194.26,194.24,1.63023813]
[1761370461948,0.68,194.26,194.23,7.43877337]
[1761370479767,0.68,194.26,194.25,5.14800514]
[1761370481470,0.68,194.26,194.24,6.77850831]
[1761370482649,0.68,194.26,194.23,1.63023813]
[1761370484081,0.68,194.26,194.24,5.14827018]
[1761370489687,0.68,194.26,194.23,5.14852763]
[1761370489896,2.31023813,194.26,194.23,5.14852763]
[1761370490386,0.7,194.25,194.23,5.14852763]
[1761370495166,0.7,194.25,194.23,6.77876576]
[1761370495760,0.7,194.25,194.23,5.14852763]
[1761370498784,0.7,194.25,194.22,7.69493024]
[1761370501269,0.7,194.25,194.22,20.56693106]
[1761370501585,0.7,194.25,194.23,2.54612992]
[1761370502272,0.7,194.25,194.24,5.14827018]
[1761370513774,0.7,194.25,194.23,5.14851104]
[1761370514767,0.7,194.25,194.22,18.02080114]
[1761370518398,2.54612992,194.23,194.17,10.87647521]
[1761370518704,2.54612992,194.19,194.16,5.15039142]
[1761370519136,0.66,194.18,194.16,5.15039142]
[1761370519779,0.66,194.18,194.15,18.02726874]
[1761370522302,0.66,194.18,194.15,20.57339866]
[1761370523914,0.66,194.18,194.15,18.02726874]
[1761370524117,0.66,194.18,194.14,7.69705193]
[1761370531025,15.46750534,194.17,194.14,7.69705193]
[1761370531508,0.67,194.16,194.14,7.69705193]
[1761370532311,16.13750534,194.16,194.14,7.69705193]
[1761370534925,0.67,194.16,194.14,7.69705193]
[1761370535317,16.13750534,194.17,194.14,7.69705193]
[1761370535929,16.13750534,194.17,194.15,2.54612992]
[1761370536219,15.46750534,194.17,194.16,2.54612992]
[1761370536600,161.86138064,194.28,194.17,10.87647521]
[1761370536801,25.42612992,194.25,194.2,2.54612992]
[1761370537006,2.54612992,194.24,194.19,2.54612992]
[1761370537201,3.21612992,194.24,194.19,2.54612992]
[1761370537419,0.67,194.23,194.19,7.69546317]
[1761370537811,16.13511328,194.23,194.19,7.69546317]
[1761370538022,0.67,194.22,194.19,7.69546317]
[1761370538397,15.46511328,194.21,194.19,7.69546317]
[1761370538801,16.13511328,194.21,194.19,7.69546317]
[1761370539225,0.67,194.21,194.19,7.69546317]
[1761370539524,15.46511328,194.2,194.19,7.69546317]
[1761370540025,0.67,194.21,194.19,7.69546317]
[1761370540520,0.67,194.23,194.2,2.54612992]
[1761370540704,22.88,194.25,194.2,3.25612992]
[1761370540908,15.46431609,194.22,194.21,2.54612992]
[1761370542514,15.46431609,194.22,194.21,7.69519536]
[1761370542704,15.46431609,194.22,194.21,5.14906544]
[1761370544931,0.67,194.24,194.21,18.57167057]
[1761370545106,13.58398939,194.23,194.21,18.57167057]
[1761370547110,14.25398939,194.23,194.21,18.57167057]
[1761370547310,13.58398939,194.23,194.21,18.57167057]
[1761370548020,0.67,194.24,194.21,18.57167057]
[1761370548328,16.131925,194.24,194.21,18.57167057]
[1761370548528,16.131925,194.24,194.2,5.14930317]
[1761370548708,0.67,194.23,194.2,5.14930317]
[1761370549029,5.81930317,194.23,194.2,5.14930317]
[1761370549415,0.67,194.23,194.2,5.14930317]
[1761370549616,0.67,194.22,194.2,5.14930317]
[1761370549818,5.81930317,194.22,194.2,5.14930317]
[1761370550011,5.81930317,194.22,194.2,8.41543309]
[1761370550012,5.14930317,194.22,194.2,8.41543309]
[1761370550211,5.14930317,194.22,194.2,7.69543309]
[1761370553232,5.14930317,194.22,194.21,2.54612992]
[1761370553428,9.80310286,194.23,194.21,3.26612992]
[1761370553630,9.80310286,194.23,194.22,2.54612992]
[1761370553938,25.26582481,194.23,194.22,2.54612992]
[1761370555239,25.26582481,194.23,194.22,8.41493024]
[1761370555424,9.80310286,194.23,194.22,7.69493024]
[1761370557129,9.80310286,194.23,194.22,8.41493024]
[1761370557317,9.80310286,194.23,194.22,19.29140545]
[1761370560923,9.80310286,194.23,194.22,18.3744224]
[1761370572549,9.80310286,194.23,194.22,17.6544224]
[1761370574753,9.80310286,194.23,194.22,16.02527553]
[1761370575047,9.80310286,194.23,194.22,17.6544224]
[1761370578840,10.52310286,194.23,194.22,16.02527553]
[1761370579177,10.52310286,194.23,194.22,53.1944224]
[1761370584959,9.80310286,194.23,194.22,53.1944224]
[1761370588558,9.80310286,194.23,194.22,53.8844224]
[1761370589060,9.80310286,194.23,194.22,53.1944224]
[1761370589965,10.50310286,194.23,194.22,53.1944224]
[1761370590564,9.80310286,194.23,194.22,53.1944224]
[1761370592862,9.80310286,194.23,194.22,53.8844224]
[1761370593062,9.80310286,194.23,194.22,53.1944224]
[1761370603076,10.50310286,194.23,194.22,53.1744224]
[1761370603374,10.50310286,194.23,194.22,16.02527553]
[1761370603562,10.50310286,194.23,194.22,53.1744224]
[1761370607875,9.80310286,194.23,194.22,53.1744224]
[1761370608182,9.80310286,194.23,194.22,53.8644224]
[1761370611378,9.80310286,194.23,194.22,53.1744224]
[1761370616574,10.46310286,194.23,194.22,53.1744224]
[1761370620683,10.46310286,194.23,194.22,54.09105702]
[1761370624498,9.80310286,194.23,194.22,54.09105702]
[1761370624678,10.51310286,194.23,194.22,54.09105702]
[1761370627091,9.80310286,194.23,194.22,54.09105702]
[1761370629004,10.51310286,194.23,194.22,54.09105702]
[1761370642207,9.80310286,194.23,194.22,54.78105702]
[1761370642620,11.43310286,194.27,194.23,10.87647521]
[1761370642807,11.43310286,194.27,194.26,2.54578149]
[1761370643126,10.71310286,194.27,194.26,2.54578149]
[1761370643516,11.43310286,194.27,194.26,2.54578149]
[1761370643723,11.43310286,194.27,194.26,7.69352163]
[1761370644015,0.2,194.27,194.26,54.77999684]
[1761370644594,0.2,194.27,194.26,54.08999684]
[1761370649337,0.92,194.27,194.26,54.08999684]
[1761370652529,0.2,194.27,194.26,54.08999684]
[1761370658355,0.2,194.27,194.26,54.77999684]
[1761370659131,0.2,194.27,194.26,52.23421535]
[1761370659334,0.2,194.27,194.26,54.77999684]
[1761370664933,0.2,194.27,194.26,54.08999684]
[1761370665824,0.92,194.27,194.26,51.54421535]
[1761370666028,0.92,194.27,194.26,54.08999684]
[1761370668741,0.2,194.27,194.26,54.08999684]
[1761370668940,0.92,194.27,194.26,54.08999684]
[1761370675645,3.18095267,194.27,194.26,54.08999684]
[1761370680667,3.18095267,194.27,194.26,53.17276832]
[1761370681567,3.18095267,194.27,194.26,42.29629311]
[1761370682266,3.18095267,194.27,194.26,6.77629311]
[1761370684571,2.46095267,194.27,194.26,6.77629311]
[1761370686576,3.15095267,194.27,194.26,6.77629311]
[1761370693065,2.46095267,194.27,194.26,6.77629311]
[1761370693886,3.15095267,194.27,194.26,6.77629311]
[1761370707393,3.15095267,194.27,194.26,5.14774014]
[1761370707594,3.15095267,194.27,194.26,1.62855297]
[1761370708479,3.15095267,194.27,194.26,6.77629311]
[1761370709393,2.46095267,194.27,194.26,53.85276832]
[1761370709695,0.2,194.27,194.26,53.85276832]
[1761370715100,0.9,194.27,194.26,17.65276832]
[1761370715402,0.9,194.27,194.26,53.17276832]
[1761370715606,0.2,194.27,194.26,53.17276832]
[1761370718498,0.9,194.27,194.26,53.17276832]
[1761370720991,0.9,194.27,194.26,6.77629311]
[1761370721196,4.46095267,194.27,194.26,5.14774014]
[1761370722210,4.46095267,194.27,194.25,40.66782512]
[1761370722410,0.7,194.26,194.25,42.29637809]
[1761370722905,4.46095267,194.26,194.25,42.29637809]
[1761370727210,4.46095267,194.26,194.25,40.66782512]
[1761370727588,4.46095267,194.26,194.25,5.14782512]
[1761370742516,3.76095267,194.26,194.25,16.02430033]
[1761370742724,0.2,194.27,194.25,16.70430033]
[1761370742897,0.2,194.27,194.26,38.74368565]
[1761370743103,0.2,194.27,194.26,43.89142579]
[1761370752242,0.2,194.27,194.26,43.21142579]
[1761370752532,0.2,194.27,194.26,8.37142579]
[1761370752718,0.2,194.27,194.26,43.87142579]
[1761370753031,0.2,194.27,194.26,43.19142579]
[1761370753707,0.2,194.27,194.26,43.87142579]
[1761370757221,0.2,194.27,194.26,41.32774014]
[1761370757531,0.2,194.27,194.26,43.87142579]
[1761370758829,0.2,194.27,194.26,43.19142579]
[1761370759433,1e-08,194.27,194.26,54.747901]
[1761370759632,1e-08,194.27,194.26,55.26267501]
[1761370759939,1e-08,194.27,194.26,57.32309688]
[1761370762635,1e-08,194.28,194.27,16.02395037]
[1761370762823,1e-08,194.28,194.27,19.24763602]
[1761370763414,1e-08,194.28,194.27,21.50805789]
[1761370764116,1e-08,194.28,194.27,22.0228054]
[1761370767219,0.68000001,194.28,194.27,20.82805789]
[1761370767418,0.68000001,194.28,194.27,56.32805789]
[1761370767738,1e-08,194.28,194.27,54.06763602]
[1761370767938,1e-08,194.28,194.27,56.81132167]
[1761370769344,1e-08,194.28,194.27,54.06763602]
[1761370769541,1e-08,194.28,194.27,56.12827018]
[1761370769916,0.68000001,194.28,194.27,54.06763602]
[1761370773844,0.68000001,194.28,194.27,18.56763602]
[1761370774140,0.68000001,194.28,194.27,54.06763602]
[1761370776741,1e-08,194.28,194.27,54.06763602]
[1761370778225,0.68000001,194.28,194.27,54.06763602]
[1761370778946,1e-08,194.28,194.27,54.06763602]
[1761370779531,0.68000001,194.28,194.27,51.52395037]
[1761370779732,0.68000001,194.28,194.27,54.06763602]
[1761370781244,1e-08,194.28,194.27,54.06763602]
[1761370781749,1e-08,194.28,194.27,54.74763602]
[1761370784555,1e-08,194.28,194.27,54.06763602]
[1761370787355,0.68,194.35,194.31,10.87647521]
[1761370787544,0.88,194.36,194.34,2.54368565]
[1761370787744,0.88,194.36,194.35,2.54368565]
[1761370788060,0.2,194.36,194.35,13.42016086]
[1761370788354,0.2,194.36,194.35,17.27110024]
[1761370789132,0.2,194.36,194.35,13.42016086]
[1761370789332,0.2,194.36,194.35,18.56551717]
[1761370790143,0.2,194.36,194.35,19.7600528]
[1761370790555,0.2,194.36,194.35,21.81962595]
[1761370791141,0.2,194.36,194.35,19.7600528]
[1761370791448,0.2,194.36,194.35,18.56551717]
[1761370792438,0.2,194.36,194.35,19.24551717]
[1761370792657,0.2,194.36,194.35,21.30519637]
[1761370797144,0.2,194.36,194.35,20.62519637]
[1761370797742,0.2,194.36,194.35,21.30519637]
[1761370798762,0.2,194.36,194.35,20.62519637]
[1761370799854,0.2,194.36,194.35,24.45745478]
[1761370801169,0.2,194.36,194.35,24.4573882]
[1761370803973,0.2,194.36,194.35,22.397709]
[1761370804669,0.2,194.36,194.35,21.48035468]
[1761370805257,0.2,194.36,194.35,56.98035468]
[1761370806764,0.2,194.36,194.35,21.48035468]
[1761370806970,0.88,194.36,194.35,21.48035468]
[1761370807269,0.88,194.36,194.35,53.16816285]
[1761370811957,0.88,194.36,194.35,17.64816285]
[1761370812276,0.88,194.36,194.35,53.16816285]
[1761370832776,0.88,194.36,194.35,5.14535631]
[1761370833090,0.88,194.36,194.34,6.77193088]
[1761370833393,0.7,194.35,194.34,6.77193088]
[1761370833989,0.7,194.35,194.34,5.14559955]
[1761370834987,0.7,194.35,194.33,42.27215126]
[1761370836390,0.7,194.35,194.33,6.77215126]
[1761370837876,0.7,194.35,194.32,40.64609299]
[1761370838075,0.7,194.35,194.32,35.5]
[1761370839097,0.7,194.35,194.31,6.77272443]
[1761370839475,15.07683394,194.35,194.31,6.77272443]
[1761370839975,0.7,194.34,194.31,6.77272443]
[1761370847917,6.97143945,194.36,194.34,10.87647521]
[1761370847918,0.9,194.36,194.34,10.87647521]
[1761370848094,0.2,194.36,194.35,1.62633133]
[1761370848701,0.9,194.36,194.35,1.62633133]
[1761370849438,0.9,194.36,194.35,6.77168764]
[1761370851112,0.9,194.36,194.35,5.14535631]
[1761370851284,0.9,194.36,194.35,6.77168764]
[1761370851800,0.9,194.36,194.35,5.14535631]
[1761370852211,0.9,194.36,194.32,42.29227866]
[1761370852414,0.72,194.35,194.32,42.29227866]
[1761370854003,0.72,194.35,194.34,1.62633133]
[1761370855117,0.72,194.35,194.33,6.77207258]
[1761370858893,0.72,194.35,194.33,5.14574125]
[1761370859099,0.72,194.35,194.33,6.77207258]
[1761370860116,0.72,194.35,194.34,1.62633133]
[1761370864432,0.72,194.35,194.33,6.77207258]
[1761370866724,0.72,194.35,194.33,2.54328269]
[1761370868214,0.72,194.35,194.31,18.56610839]
[1761370870626,0.72,194.35,194.31,7.68963318]
[1761370878113,0.72,194.35,194.32,7.68928989]
[1761370878831,0.2,194.36,194.34,2.54328269]
[1761370879015,0.87,194.36,194.34,2.54328269]
[1761370880040,0.71,194.35,194.34,2.54328269]
[1761370880215,0.71,194.35,194.32,5.1460072]
[1761370880631,0.71,194.35,194.34,2.54328269]
[1761370880814,0.2,194.36,194.34,2.54328269]
[1761370881016,0.91,194.36,194.34,2.54328269]
[1761370882640,0.71,194.35,194.34,2.54328269]
[1761370883534,0.2,194.36,194.34,2.54328269]
[1761370883744,0.91,194.36,194.34,2.54328269]
[1761370884418,0.2,194.36,194.35,3.21328269]
[1761370885342,0.2,194.36,194.35,8.358639]
[1761370886040,0.2,194.36,194.35,7.688639]
[1761370886230,0.2,194.36,194.35,8.358639]
[1761370887346,0.2,194.36,194.35,19.23511421]
[1761370890443,0.2,194.36,194.35,18.56511421]
[1761370891037,0.2,194.36,194.35,19.23511421]
[1761370909480,0.2,194.36,194.35,18.56511421]
[1761370909966,0.92,194.36,194.35,18.56511421]
[1761370910161,0.2,194.36,194.35,18.56511421]
[1761370912443,0.2,194.36,194.35,54.06511421]
[1761370914053,0.2,194.36,194.35,18.56511421]
[1761370914253,0.2,194.36,194.35,54.06511421]
[1761370917064,0.2,194.36,194.35,18.56511421]
[1761370917269,0.2,194.36,194.35,54.06511421]
[1761370918443,0.2,194.37,194.36,10.87647521]
[1761370918758,0.2,194.37,194.36,14.1397579]
[1761370919965,0.2,194.37,194.36,19.28484948]
[1761370920359,0.2,194.37,194.36,21.34431659]
[1761370926374,0.2,194.38,194.36,19.28484948]
[1761370926686,0.2,194.39,194.38,10.87647521]
[1761370926981,0.2,194.39,194.38,19.72441251]
[1761370927160,0.2,194.39,194.38,13.22206267]
[1761370927366,0.2,194.39,194.38,18.36662486]
[1761370929663,0.2,194.39,194.38,24.8689747]
[1761370931470,0.2,194.39,194.38,18.36662486]
[1761370935979,1e-08,194.39,194.38,18.36662486]
[1761370936779,1e-08,194.39,194.38,19.99221232]
[1761370939978,1e-08,194.39,194.38,20.50666853]
[1761370940287,1e-08,194.39,194.38,25.38343091]
[1761370943674,1e-08,194.4,194.39,34.44647521]
[1761370943860,1e-08,194.4,194.39,78.07441251]
[1761370944775,1e-08,194.4,194.39,83.21871005]
[1761370945467,1e-08,194.4,194.39,83.7131398]
[1761370946367,1e-08,194.4,194.39,83.0231398]
[1761370946583,1e-08,194.4,194.39,83.7131398]
[1761370948887,1e-08,194.4,194.39,39.4152025]
[1761370949066,0.72000001,194.4,194.39,76.00636021]
[1761370949467,0.72000001,194.4,194.39,74.38077275]
[1761370949691,0.72000001,194.4,194.39,76.00636021]
[1761370954586,0.72000001,194.4,194.39,40.52636021]
[1761370954790,0.72000001,194.4,194.39,76.00636021]
[1761370955289,0.72000001,194.4,194.39,40.52636021]
[1761370955581,0.72000001,194.4,194.39,76.00636021]
[1761370960186,0.72000001,194.4,194.39,40.52636021]
[1761370960384,1e-08,194.4,194.39,76.69636021]
[1761370960591,1e-08,194.4,194.39,76.00636021]
[1761370965813,1e-08,194.4,194.39,78.32194767]
[1761370966585,1e-08,194.4,194.39,78.83637742]
[1761370967098,0.72000001,194.4,194.39,76.52078996]
[1761370967600,1e-08,194.4,194.39,76.52078996]
[1761370968003,1e-08,194.4,194.39,76.00636021]
[1761370968779,0.72000001,194.4,194.39,76.00636021]
[1761370971490,0.72000001,194.4,194.39,40.52636021]
[1761370971884,0.72000001,194.4,194.39,76.00636021]
[1761370978492,0.72000001,194.4,194.39,74.38077275]
[1761370978690,0.72000001,194.4,194.39,76.00636021]
[1761370981223,0.72000001,194.4,194.39,17.64636021]
[1761370981397,0.72000001,194.4,194.39,53.12636021]
[1761370981596,2.77957316,194.4,194.39,51.50077275]
[1761370981817,2.77957316,194.4,194.39,53.12636021]
[1761370984012,2.77957316,194.4,194.39,17.64636021]
[1761370984199,2.77957316,194.4,194.39,53.12636021]
[1761370985198,2.77957316,194.4,194.39,16.02077275]
[1761370985395,2.77957316,194.4,194.39,51.50077275]
[1761370985605,2.77957316,194.4,194.39,53.12636021]
[1761370986522,0.72000001,194.4,194.39,53.12636021]
[1761370986702,0.72000001,194.4,194.39,54.04231234]
[1761370988531,0.72000001,194.4,194.39,18.56231234]
[1761370988819,0.72000001,194.4,194.39,54.04231234]
[1761370989707,0.72000001,194.4,194.39,43.16583713]
[1761370989903,0.72000001,194.4,194.39,54.04231234]
[1761370990107,3.69957317,194.4,194.39,54.04231234]
[1761370990420,0.72000001,194.4,194.39,54.04231234]
[1761370995527,0.72000001,194.4,194.39,48.8980148]
[1761370995713,4.61957318,194.4,194.37,5.14482687]
[1761370995915,4.61957318,194.4,194.38,35.48]
[1761370996117,0.69,194.39,194.38,35.48]
[1761370996426,8.57506949,194.39,194.37,10.87647521]
[1761370996605,8.57506949,194.39,194.36,7.68659829]
[1761370996807,0.69,194.38,194.36,43.16659829]
[1761370997231,9.26506949,194.38,194.36,43.16659829]
[1761370997605,0.69,194.37,194.36,54.0430735]
[1761370999813,9.95506949,194.37,194.36,54.0430735]
[1761371000013,0.69,194.37,194.36,54.0430735]
[1761371002326,10.64506949,194.37,194.36,54.0430735]
[1761371002732,0.69,194.37,194.36,54.0430735]
[1761371010343,11.33506949,194.37,194.36,54.0430735]
[1761371012327,0.69,194.37,194.36,54.0430735]
[1761371015251,0.69,194.37,194.31,8.57506949]
[1761371015426,3.23153959,194.37,194.33,10.87647521]
[1761371015853,12.02506949,194.36,194.33,10.87647521]
[1761371016237,0.69,194.35,194.33,10.87647521]
[1761371016840,0.69,194.35,194.33,16.02232801]
[1761371017041,0.69,194.35,194.33,18.5638676]
[1761371017247,12.02506949,194.35,194.33,18.5638676]
[1761371018445,0.69,194.34,194.33,18.5638676]
[1761371020360,0.69,194.34,194.33,5.1458528]
[1761371020532,12.02506949,194.34,194.33,5.1458528]
[1761371020739,12.02506949,194.34,194.32,43.18767047]